[Event "ROU-ch Open 2021"]
[Site "Iasi"]
[Date "2021.04.21"]
[Round "4.19"]
[White "Illes, Sandor-Ferenc"]
[Black "Filip, Andrei (L.)"]
[Result "0-1"]
[ECO "B41"]
[WhiteElo "1935"]
[BlackElo "2168"]
[Annotator "ChessBase"]
[PlyCount "87"]
[EventDate "2021.04.19"]
[EventType "swiss"]
[EventCountry "ROU"]
[SourceTitle "playchess.com"]
[Source "ChessBase"]
[SourceQuality "1"]
[TimeControl "5400+30"]

1. e4 {[%emt 0:00:00]} c5 {[%emt 0:00:00]} 2. Nf3 {[%emt 0:00:00]} e6 {[%emt 0:00:00]} 3. d4 {[%emt 0:00:04]} cxd4 {[%emt 0:00:00]} 4. Nxd4 {[%emt 0:00:22]} a6 {[%emt 0:00:00]} 5. Be3 {[%emt 0:01:09]} Nf6 {[%emt 0:03:15]} 6. Nd2 {[%emt 0:00:41]} d5 {[%emt 0:04:06]} 7. Bd3 {[%emt 0:06:31]} e5 {[%emt 0:04:44]} 8. N4b3 {[%emt 0:00:45]} Nc6 {[%emt 0:02:54]} 9. c4 {[%emt 0:08:16]} Nb4 {[%emt 0:07:48]} 10. Bb1 {[%emt 0:03:44]} dxe4 {[%emt 0:13:16]} 11. Nxe4 {[%emt 0:00:46]} Qxd1+ {[%emt 0:01:38]} 12. Kxd1 {[%emt 0:00:17]} Nxe4 {[%emt 0:13:39]} 13. Bxe4 {[%emt 0:00:37]} f5 {[%emt 0:03:03]} 14. Bb1 {[%emt 0:02:46]} Be6 {[%emt 0:02:50]} 15. Nc5 {[%emt 0:15:57]} Bxc4 {[%emt 0:16:00]} 16. Bxf5 {[%emt 0:05:38]} Bxa2 {[%emt 0:10:51]} 17. Nxb7 {[%emt 0:19:35]} Bd5 {[%emt 0:01:16]} 18. Nc5 {[%emt 0:00:25]} Bxg2 {[%emt 0:02:00]} 19. Re1 {[%emt 0:03:07]} Bf3+ {[%emt 0:00:53]} 20. Kd2 {[%emt 0:00:22]} Rd8+ {[%emt 0:03:32]} 21. Kc3 {[%emt 0:00:30]} Nd5+ {[%emt 0:00:17]} 22. Kc4 {[%emt 0:00:39]} Nxe3+ {[%emt 0:03:54]} 23. Rxe3 {[%emt 0:00:30]} Bd5+ {[%emt 0:00:36]} 24. Kb4 {[%emt 0:00:24]} e4 {[%emt 0:02:21]} 25. Ra5 {[%emt 0:02:13]} Rb8+ {[%emt 0:00:40]} 26. Kc3 {[%emt 0:00:13]} Be7 {[%emt 0:02:05]} 27. Nxe4 {[%emt 0:01:36]} Bb4+ {[%emt 0:00:08]} 28. Kd4 {[%emt 0:00:58]} Bxa5 {[%emt 0:00:06]} 29. Nd6+ {[%emt 0:01:46]} Kf8 {[%emt 0:00:12]} 30. Kxd5 {[%emt 0:00:16]} g6 {[%emt 0:00:42]} 31. Bc8 {[%emt 0:05:48]} Rg8 {[%emt 0:01:44]} 32. Bxa6 {[%emt 0:13:01]} Rxb2 {[%emt 0:00:12]} 33. Re8+ {[%emt 0:01:06]} Kg7 {[%emt 0:00:02]} 34. Re7+ {[%emt 0:00:09]} Kf6 {[%emt 0:00:42]} 35. Rf7+ {[%emt 0:00:44]} Kg5 {[%emt 0:00:07]} 36. Rxh7 {[%emt 0:01:13]} Rd8 {[%emt 0:00:53]} 37. h4+ {[%emt 0:01:19]} Kf4 {[%emt 0:00:23]} 38. Rf7+ {[%emt 0:01:46]} Kg4 {[%emt 0:00:10]} 39. Bc8+ {[%emt 0:00:54]} Kxh4 {[%emt 0:00:08]} 40. Rf4+ {[%emt 0:00:02]} Kg5 {[%emt 0:00:44]} 41. Rd4 {[%emt 0:01:01]} Bc7 {[%emt 0:00:29]} 42. Kc6 {[%emt 0:02:02]} Rxd6+ {[%emt 0:00:10]} 43. Rxd6 {[%emt 0:00:04]} Bxd6 {[%emt 0:00:05]} 44. Kxd6 {[%emt 0:00:03]} 0-1

[Event "ROU-ch Open 2021"]
[Site "Iasi"]
[Date "2021.04.21"]
[Round "4.20"]
[White "Stepanencu, Nicodim-Cosmin"]
[Black "Panc, Samuel"]
[Result "1-0"]
[ECO "B29"]
[WhiteElo "2104"]
[BlackElo "1937"]
[Annotator "NA"]
[PlyCount "31"]
[EventDate "2021.04.19"]
[EventType "swiss"]
[EventCountry "ROU"]
[SourceTitle "playchess.com"]
[Source "ChessBase"]
[SourceQuality "1"]
[TimeControl "5400+30"]

1. e4 {[%emt 0:00:00]} c5 {[%emt 0:00:00]} 2. Nf3 {[%emt 0:00:00]} Nf6 {[%emt 0:00:00]} 3. e5 {[%emt 0:00:00]} Nd5 {[%emt 0:00:00]} 4. Nc3 {[%emt 0:00:00]} Nxc3 {[%emt 0:00:00]} 5. dxc3 {[%emt 0:00:00]} Nc6 {[%emt 0:00:03]} 6. Bc4 {[%emt 0:00:17]} e6 {[%emt 0:00:14]} 7. Bf4 {[%emt 0:00:06]} Qb6 {[%emt 0:02:45]} 8. Nd2 {[%emt 0:00:33]} Qc7 {[%emt 0:00:48]} 9. Qe2 {[%emt 0:00:14]} b6 {[%emt 0:10:06]} 10. O-O-O {[%emt 0:05:01]} Bb7 {[%emt 0:01:36]} 11. Kb1 {[%emt 0:24:39]} O-O-O {[%emt 0:02:01]} 12. Ne4 {[%emt 0:01:24]} Nxe5 {[%emt 0:01:04]} 13. Ng5 {[%emt 0:00:19]} d6 {[%emt 0:09:37]} 14. Bxe5 {[%emt 0:03:17]} dxe5 {[%emt 0:00:07]} 15. Rxd8+ {[%emt 0:00:34]} Kxd8 {[%emt 0:00:14]} 16. Bxe6 {[%emt 0:00:16]} 1-0

[Event "ROU-ch Open 2021"]
[Site "Iasi"]
[Date "2021.04.22"]
[Round "5.5"]
[White "Magold, Victor"]
[Black "Ghimpu, Samuel-Timotei"]
[Result "1/2-1/2"]
[ECO "E62"]
[WhiteElo "2014"]
[BlackElo "2315"]
[Annotator "ChessBase"]
[PlyCount "60"]
[EventDate "2021.04.19"]
[EventType "swiss"]
[EventCountry "ROU"]
[SourceTitle "playchess.com"]
[Source "ChessBase"]
[SourceQuality "1"]
[TimeControl "5400+30"]

1. d4 {[%emt 0:00:00]} Nf6 {[%emt 0:00:00]} 2. Nf3 {[%emt 0:00:00]} g6 {[%emt 0:00:00]} 3. g3 {[%emt 0:00:00]} Bg7 {[%emt 0:00:00]} 4. c4 {[%emt 0:00:06]} O-O {[%emt 0:00:12]} 5. Bg2 {[%emt 0:00:03]} d6 {[%emt 0:00:07]} 6. O-O {[%emt 0:00:09]} Nc6 {[%emt 0:00:03]} 7. Nc3 {[%emt 0:01:02]} Bf5 {[%emt 0:00:11]} 8. Nh4 {[%emt 0:02:55]} Bd7 {[%emt 0:00:13]} 9. b3 {[%emt 0:03:33]} a5 {[%emt 0:00:16]} 10. Bb2 {[%emt 0:00:26]} e5 {[%emt 0:00:06]} 11. dxe5 {[%emt 0:01:08]} dxe5 {[%emt 0:00:52]} 12. Qd2 {[%emt 0:07:17]} Re8 {[%emt 0:41:31]} 13. Nd5 {[%emt 0:15:34]} Nxd5 {[%emt 0:07:11]} 14. cxd5 {[%emt 0:04:04]} Nd4 {[%emt 0:00:31]} 15. Nf3 {[%emt 0:09:14]} Nb5 {[%emt 0:09:51]} 16. e4 {[%emt 0:03:21]} a4 {[%emt 0:00:35]} 17. Rac1 {[%emt 0:03:48]} Qf6 {[%emt 0:04:31]} 18. Rc4 {[%emt 0:11:52]} axb3 {[%emt 0:04:11]} 19. axb3 {[%emt 0:00:09]} Qb6 {[%emt 0:00:33]} 20. Rfc1 {[%emt 0:08:02]} Ra2 {[%emt 0:02:01]} 21. Ra4 {[%emt 0:01:09]} Bh6 {[%emt 0:01:13]} 22. Qxh6 {[%emt 0:03:45]} Rxb2 {[%emt 0:00:06]} 23. Rf1 {[%emt 0:00:49]} f6 {[%emt 0:04:28]} 24. Bh3 {[%emt 0:04:06]} Bxh3 {[%emt 0:00:55]} 25. Qxh3 {[%emt 0:00:13]} Nd6 {[%emt 0:03:44]} 26. Qd7 {[%emt 0:08:43]} Qxb3 {[%emt 0:00:57]} 27. Nh4 {[%emt 0:05:03]} Rb1 {[%emt 0:01:45]} 28. Ra1 {[%emt 0:02:00]} Rxf1+ {[%emt 0:03:37]} 29. Rxf1 {[%emt 0:00:25]} Qc4 {[%emt 0:00:44]} 30. Ng2 {[%emt 0:00:41]} Qxe4 {[%emt 0:09:40]} 1/2-1/2

[Event "ROU-ch Open 2021"]
[Site "Iasi"]
[Date "2021.04.22"]
[Round "5.6"]
[White "Padurariu, Mihai-Edward"]
[Black "Antonica, Dragos-Andrei"]
[Result "1/2-1/2"]
[ECO "B01"]
[WhiteElo "2084"]
[BlackElo "2291"]
[Annotator "ChessBase"]
[PlyCount "119"]
[EventDate "2021.04.19"]
[EventType "swiss"]
[EventCountry "ROU"]
[SourceTitle "playchess.com"]
[Source "ChessBase"]
[SourceQuality "1"]
[TimeControl "5400+30"]

1. e4 {[%emt 0:00:00]} d5 {[%emt 0:00:00]} 2. exd5 {[%emt 0:00:00]} Qxd5 {[%emt 0:00:00]} 3. Nf3 {[%emt 0:00:05]} Bg4 {[%emt 0:00:01]} 4. Be2 {[%emt 0:00:08]} Nc6 {[%emt 0:00:06]} 5. d4 {[%emt 0:00:05]} O-O-O {[%emt 0:00:40]} 6. c4 {[%emt 0:00:35]} Qf5 {[%emt 0:00:36]} 7. Be3 {[%emt 0:00:55]} Bxf3 {[%emt 0:00:55]} 8. Bxf3 {[%emt 0:00:06]} Nxd4 {[%emt 0:00:47]} 9. Bg4 {[%emt 0:00:25]} Nc2+ {[%emt 0:00:05]} 10. Qxc2 {[%emt 0:00:02]} Qxg4 {[%emt 0:00:01]} 11. O-O {[%emt 0:00:14]} e6 12. c5 {[%emt 0:16:34]} Qf5 {[%emt 0:14:37]} 13. Qc4 {[%emt 0:12:40]} Qd5 {[%emt 0:13:12]} 14. Qb4 {[%emt 0:10:04]} Nf6 {[%emt 0:19:12]} 15. Nc3 {[%emt 0:02:41]} Qc6 {[%emt 0:01:32]} 16. Qc4 {[%emt 0:05:16]} Nd5 {[%emt 0:12:08]} 17. b4 {[%emt 0:04:26]} Nxc3 {[%emt 0:01:33]} 18. Qxc3 {[%emt 0:00:03]} Be7 {[%emt 0:00:22]} 19. Rab1 {[%emt 0:03:50]} Bf6 {[%emt 0:01:02]} 20. Qc2 {[%emt 0:00:45]} Qb5 {[%emt 0:04:00]} 21. a4 {[%emt 0:06:49]} Qd3 {[%emt 0:01:05]} 22. Qa2 {[%emt 0:00:03]} Kb8 {[%emt 0:15:01]} 23. b5 {[%emt 0:04:24]} Rd5 {[%emt 0:04:03]} 24. c6 {[%emt 0:09:43]} Bd4 {[%emt 0:02:54]} 25. Rfd1 {[%emt 0:02:33]} Qc3 {[%emt 0:02:36]} 26. Bxd4 {[%emt 0:03:27]} Rxd4 {[%emt 0:00:05]} 27. Rxd4 {[%emt 0:01:03]} Qxd4 {[%emt 0:00:01]} 28. cxb7 {[%emt 0:01:01]} Rd8 {[%emt 0:00:18]} 29. h3 {[%emt 0:01:24]} Qc3 {[%emt 0:03:53]} 30. a5 {[%emt 0:05:40]} Rd2 {[%emt 0:00:45]} 31. Qa4 {[%emt 0:00:01]} Rd4 {[%emt 0:00:01]} 32. Qa2 {[%emt 0:00:12]} Rd2 {[%emt 0:00:26]} 33. Qa4 {[%emt 0:00:06]} Rd4 {[%emt 0:00:01]} 34. Qa2 {[%emt 0:00:07]} Kxb7 {[%emt 0:00:25]} 35. a6+ {[%emt 0:05:37]} Kb6 {[%emt 0:02:38]} 36. Qe2 {[%emt 0:00:16]} Qd3 {[%emt 0:00:34]} 37. Qb2 {[%emt 0:00:32]} Rc4 {[%emt 0:00:51]} 38. Re1 {[%emt 0:01:11]} Qd4 {[%emt 0:00:01]} 39. Qe2 {[%emt 0:00:27]} Qd5 {[%emt 0:01:50]} 40. Qe3+ {[%emt 0:00:57]} Rc5 {[%emt 0:00:36]} 41. Rb1 {[%emt 0:01:29]} e5 {[%emt 0:00:18]} 42. h4 {[%emt 0:01:30]} Qd4 {[%emt 0:00:25]} 43. Qf3 {[%emt 0:00:13]} Qd5 {[%emt 0:00:06]} 44. Qe3 {[%emt 0:00:08]} f5 {[%emt 0:00:47]} 45. g3 {[%emt 0:02:33]} h6 {[%emt 0:00:43]} 46. h5 {[%emt 0:00:48]} Qe4 {[%emt 0:01:06]} 47. Qb3 {[%emt 0:00:14]} Qc4 {[%emt 0:00:24]} 48. Qf3 {[%emt 0:00:28]} Qe4 {[%emt 0:00:05]} 49. Qb3 {[%emt 0:00:00]} Qd5 {[%emt 0:00:00]} 50. Qe3 {[%emt 0:00:00]} f4 {[%emt 0:00:14]} 51. gxf4 {[%emt 0:00:00]} exf4 {[%emt 0:01:29]} 52. Qe8 {[%emt 0:00:00]} f3 {[%emt 0:00:20]} 53. Qg6+ {[%emt 0:01:27]} Qd6 {[%emt 0:00:22]} 54. Qe4 {[%emt 0:00:29]} Qd5 {[%emt 0:00:42]} 55. Qg6+ {[%emt 0:00:07]} Qd6 {[%emt 0:00:35]} 56. Qe4 {[%emt 0:00:03]} Qd5 {[%emt 0:00:59]} 57. Qg6+ {[%emt 0:00:14]} Qd6 {[%emt 0:00:16]} 58. Qe4 {[%emt 0:00:20]} Qd5 {[%emt 0:00:01]} 59. Qg6+ Ka5 60. Ra1+ {[%emt 0:00:15]} 1/2-1/2

[Event "ROU-ch Open 2021"]
[Site "Iasi"]
[Date "2021.04.22"]
[Round "5.7"]
[White "Gheorghiu, Calin"]
[Black "Coca, Cristi-Iulian"]
[Result "1/2-1/2"]
[ECO "B40"]
[WhiteElo "2283"]
[BlackElo "2153"]
[Annotator "ChessBase"]
[PlyCount "77"]
[EventDate "2021.04.19"]
[EventType "swiss"]
[EventCountry "ROU"]
[SourceTitle "playchess.com"]
[Source "ChessBase"]
[SourceQuality "1"]
[TimeControl "5400+30"]

1. e4 {[%emt 0:00:04]} c5 {[%emt 0:00:00]} 2. Nf3 {[%emt 0:00:12]} e6 {[%emt 0:00:00]} 3. c3 {[%emt 0:00:34]} Nf6 {[%emt 0:02:36]} 4. Bd3 {[%emt 0:06:12]} Nc6 {[%emt 0:04:28]} 5. O-O {[%emt 0:00:17]} Be7 {[%emt 0:04:18]} 6. e5 {[%emt 0:08:33]} Ng4 {[%emt 0:07:55]} 7. Re1 {[%emt 0:03:39]} d6 {[%emt 0:01:56]} 8. Bb5 {[%emt 0:05:02]} Ngxe5 {[%emt 0:12:20]} 9. Nxe5 {[%emt 0:03:47]} dxe5 {[%emt 0:00:39]} 10. Bxc6+ {[%emt 0:00:52]} bxc6 {[%emt 0:00:45]} 11. c4 {[%emt 0:11:20]} O-O {[%emt 0:09:46]} 12. Nc3 {[%emt 0:01:45]} Qd4 {[%emt 0:08:22]} 13. d3 {[%emt 0:13:21]} f5 {[%emt 0:13:02]} 14. Be3 {[%emt 0:06:21]} Qh4 {[%emt 0:00:09]} 15. Na4 {[%emt 0:03:35]} Rb8 {[%emt 0:21:08]} 16. b3 {[%emt 0:01:10]} Rd8 {[%emt 0:05:33]} 17. g3 {[%emt 0:09:29]} Qf6 {[%emt 0:00:37]} 18. Qe2 {[%emt 0:01:33]} Qf8 {[%emt 0:00:10]} 19. Bc1 {[%emt 0:01:23]} Rb7 {[%emt 0:02:05]} 20. Bb2 {[%emt 0:01:51]} Rbd7 {[%emt 0:00:57]} 21. Bxe5 {[%emt 0:01:35]} Rxd3 {[%emt 0:00:30]} 22. Rad1 {[%emt 0:00:15]} Rxd1 {[%emt 0:01:03]} 23. Rxd1 {[%emt 0:00:06]} Bf6 {[%emt 0:01:34]} 24. Bxf6 {[%emt 0:03:29]} Qxf6 {[%emt 0:00:20]} 25. Rxd8+ {[%emt 0:00:47]} Qxd8 {[%emt 0:00:01]} 26. Qe5 {[%emt 0:00:21]} Qd1+ {[%emt 0:01:42]} 27. Kg2 {[%emt 0:00:02]} Qd4 {[%emt 0:00:09]} 28. Qb8 {[%emt 0:06:00]} Qe4+ {[%emt 0:00:04]} 29. f3 {[%emt 0:00:11]} Qe2+ {[%emt 0:00:04]} 30. Kh3 {[%emt 0:00:06]} g5 {[%emt 0:00:24]} 31. Qxc8+ {[%emt 0:00:12]} Kf7 {[%emt 0:00:21]} 32. Qd7+ {[%emt 0:01:13]} Kg6 {[%emt 0:00:34]} 33. Qe8+ {[%emt 0:00:22]} Kh6 {[%emt 0:00:43]} 34. Qf8+ {[%emt 0:00:12]} Kg6 {[%emt 0:00:09]} 35. Qg8+ {[%emt 0:02:03]} Kf6 {[%emt 0:01:09]} 36. Qh8+ {[%emt 0:00:37]} Kg6 {[%emt 0:00:04]} 37. Qg8+ {[%emt 0:00:22]} Kf6 {[%emt 0:00:06]} 38. Qh8+ {[%emt 0:00:08]} Kg6 {[%emt 0:00:09]} 39. Qe5 {[%emt 0:00:24]} 1/2-1/2

[Event "ROU-ch Open 2021"]
[Site "Iasi"]
[Date "2021.04.22"]
[Round "5.8"]
[White "Nastore, Pavel-Alexandru"]
[Black "Stepanencu, Nicodim-Cosmin"]
[Result "1/2-1/2"]
[ECO "D94"]
[WhiteElo "2256"]
[BlackElo "2104"]
[Annotator "ChessBase"]
[PlyCount "120"]
[EventDate "2021.04.19"]
[EventType "swiss"]
[EventCountry "ROU"]
[SourceTitle "playchess.com"]
[Source "ChessBase"]
[SourceQuality "1"]
[TimeControl "5400+30"]

1. e4 {[%emt 0:00:00]} c6 {[%emt 0:00:00]} 2. d4 {[%emt 0:00:05]} d5 {[%emt 0:00:02]} 3. exd5 {[%emt 0:00:05]} cxd5 {[%emt 0:00:08]} 4. c4 {[%emt 0:00:03]} Nf6 {[%emt 0:00:07]} 5. Nc3 {[%emt 0:00:17]} g6 {[%emt 0:05:53]} 6. Nf3 {[%emt 0:00:33]} Bg7 {[%emt 0:00:10]} 7. Be2 {[%emt 0:00:56]} O-O {[%emt 0:00:39]} 8. O-O {[%emt 0:00:15]} Nc6 {[%emt 0:02:49]} 9. Be3 {[%emt 0:16:46]} dxc4 {[%emt 0:15:24]} 10. Bxc4 {[%emt 0:00:34]} Na5 {[%emt 0:15:58]} 11. Bd3 {[%emt 0:14:26]} Be6 {[%emt 0:02:50]} 12. Qe2 {[%emt 0:09:09]} Rc8 {[%emt 0:00:58]} 13. Rac1 {[%emt 0:00:35]} Bc4 {[%emt 0:15:33]} 14. b4 {[%emt 0:22:41]} Bxd3 {[%emt 0:00:34]} 15. Qxd3 {[%emt 0:00:04]} Nc4 {[%emt 0:15:00]} 16. Nb5 {[%emt 0:01:48]} Nd6 {[%emt 0:00:20]} 17. Rxc8 {[%emt 0:12:36]} Nxc8 {[%emt 0:00:21]} 18. Rc1 {[%emt 0:01:06]} Nd5 {[%emt 0:02:04]} 19. Qb3 {[%emt 0:00:57]} e6 {[%emt 0:02:10]} 20. h3 {[%emt 0:02:15]} h6 {[%emt 0:03:45]} 21. a3 {[%emt 0:02:09]} Nce7 {[%emt 0:01:03]} 22. Nc3 {[%emt 0:00:47]} Qd7 {[%emt 0:11:35]} 23. Nxd5 {[%emt 0:03:52]} Nxd5 {[%emt 0:00:01]} 24. Qc2 {[%emt 0:00:33]} Qb5 {[%emt 0:03:51]} 25. Qd2 {[%emt 0:01:16]} Kh7 {[%emt 0:00:21]} 26. Rc5 {[%emt 0:00:56]} Qd7 {[%emt 0:00:04]} 27. h4 {[%emt 0:02:05]} b6 {[%emt 0:00:33]} 28. Rc1 {[%emt 0:00:25]} Rc8 {[%emt 0:00:09]} 29. h5 {[%emt 0:01:12]} g5 {[%emt 0:00:51]} 30. Rc2 {[%emt 0:02:53]} f5 {[%emt 0:01:04]} 31. Ne5 {[%emt 0:01:35]} Rxc2 {[%emt 0:00:41]} 32. Qxc2 {[%emt 0:00:06]} Bxe5 {[%emt 0:00:02]} 33. dxe5 {[%emt 0:00:11]} Qc7 {[%emt 0:00:28]} 34. Qd3 {[%emt 0:01:31]} Qxe5 {[%emt 0:00:11]} 35. Bd4 {[%emt 0:00:03]} Qe1+ {[%emt 0:01:00]} 36. Kh2 {[%emt 0:00:07]} Qe4 {[%emt 0:00:03]} 37. Qxe4 {[%emt 0:02:28]} fxe4 {[%emt 0:00:01]} 38. g3 {[%emt 0:00:16]} Kg8 {[%emt 0:00:59]} 39. Kg2 {[%emt 0:00:09]} Kf7 {[%emt 0:00:40]} 40. Kf1 {[%emt 0:00:06]} Nf6 {[%emt 0:00:39]} 41. a4 {[%emt 0:00:52]} Nd5 {[%emt 0:00:46]} 42. b5 {[%emt 0:00:29]} Nf6 {[%emt 0:00:32]} 43. Ke2 {[%emt 0:00:04]} Nd7 {[%emt 0:00:10]} 44. Ke3 {[%emt 0:01:33]} e5 {[%emt 0:00:01]} 45. Ba1 {[%emt 0:01:07]} Ke6 {[%emt 0:00:04]} 46. Kxe4 {[%emt 0:00:05]} Nc5+ {[%emt 0:00:23]} 47. Ke3 {[%emt 0:00:04]} Nxa4 {[%emt 0:00:04]} 48. f4 {[%emt 0:00:02]} exf4+ {[%emt 0:00:34]} 49. gxf4 {[%emt 0:00:06]} Kf5 {[%emt 0:00:03]} 50. Be5 {[%emt 0:00:58]} gxf4+ {[%emt 0:02:39]} 51. Bxf4 {[%emt 0:00:05]} Nc3 {[%emt 0:00:05]} 52. Bxh6 {[%emt 0:00:56]} Nxb5 {[%emt 0:00:04]} 53. Bf8 {[%emt 0:00:20]} Nc7 {[%emt 0:00:32]} 54. Bd6 {[%emt 0:01:22]} Ne6 {[%emt 0:00:18]} 55. Kd3 {[%emt 0:00:07]} a6 {[%emt 0:00:43]} 56. Kc4 {[%emt 0:00:30]} b5+ {[%emt 0:00:59]} 57. Kb4 {[%emt 0:01:21]} Nd8 {[%emt 0:00:04]} 58. Bf8 {[%emt 0:00:16]} Nc6+ {[%emt 0:00:35]} 59. Kc5 {[%emt 0:00:12]} Ne5 {[%emt 0:00:01]} 60. Kb6 {[%emt 0:00:40]} Nd7+ {[%emt 0:00:11]} 1/2-1/2

[Event "ROU-ch Open 2021"]
[Site "Iasi"]
[Date "2021.04.22"]
[Round "5.9"]
[White "Martian, Dragos-Daniel"]
[Black "Ignat, Matei-Marius"]
[Result "0-1"]
[ECO "B22"]
[WhiteElo "2198"]
[BlackElo "1978"]
[Annotator "NA"]
[PlyCount "122"]
[EventDate "2021.04.19"]
[EventType "swiss"]
[EventCountry "ROU"]
[SourceTitle "playchess.com"]
[Source "ChessBase"]
[SourceQuality "1"]
[TimeControl "5400+30"]

1. e4 {[%emt 0:04:01]} c5 {[%emt 0:00:00]} 2. c3 {[%emt 0:03:21]} Nf6 {[%emt 0:00:00]} 3. e5 {[%emt 0:00:03]} Nd5 {[%emt 0:00:00]} 4. d4 {[%emt 0:00:03]} cxd4 {[%emt 0:00:00]} 5. Nf3 {[%emt 0:00:03]} Nc6 {[%emt 0:00:14]} 6. cxd4 {[%emt 0:00:08]} d6 {[%emt 0:00:07]} 7. Bc4 {[%emt 0:00:08]} Nb6 {[%emt 0:00:39]} 8. Bb3 {[%emt 0:00:05]} dxe5 {[%emt 0:02:50]} 9. d5 {[%emt 0:00:45]} Na5 {[%emt 0:00:36]} 10. Nc3 {[%emt 0:00:05]} f6 {[%emt 0:14:13]} 11. Be3 {[%emt 0:00:26]} g6 {[%emt 0:18:35]} 12. O-O {[%emt 0:00:46]} Bg7 {[%emt 0:11:14]} 13. d6 {[%emt 0:00:23]} exd6 {[%emt 0:20:41]} 14. Rc1 {[%emt 0:00:52]} Nxb3 {[%emt 0:12:17]} 15. Qxb3 {[%emt 0:01:29]} d5 {[%emt 0:00:18]} 16. Bxb6 {[%emt 0:03:05]} Qxb6 {[%emt 0:01:13]} 17. Qxb6 {[%emt 0:01:35]} axb6 {[%emt 0:00:04]} 18. Nxd5 {[%emt 0:00:07]} O-O {[%emt 0:02:55]} 19. Nxb6 {[%emt 0:00:50]} Rb8 {[%emt 0:01:23]} 20. Rc7 {[%emt 0:01:28]} Be6 {[%emt 0:00:51]} 21. a4 {[%emt 0:09:54]} Rfd8 {[%emt 0:07:30]} 22. a5 {[%emt 0:13:15]} Bf8 {[%emt 0:01:11]} 23. Ra1 {[%emt 0:08:14]} e4 {[%emt 0:01:40]} 24. Ne1 {[%emt 0:00:18]} Rd2 {[%emt 0:00:32]} 25. Nc2 {[%emt 0:02:12]} Bd6 {[%emt 0:01:01]} 26. Rc3 {[%emt 0:05:23]} Be5 {[%emt 0:00:02]} 27. Rc5 {[%emt 0:01:01]} Bd6 {[%emt 0:00:18]} 28. Rc3 {[%emt 0:00:20]} Be5 {[%emt 0:00:03]} 29. Rc5 {[%emt 0:00:03]} Rbd8 {[%emt 0:02:19]} 30. Ne3 {[%emt 0:02:40]} Rxb2 {[%emt 0:01:14]} 31. Rac1 {[%emt 0:02:18]} Bd4 {[%emt 0:00:29]} 32. R5c2 {[%emt 0:03:23]} Rxc2 {[%emt 0:00:24]} 33. Rxc2 {[%emt 0:00:10]} Bxb6 {[%emt 0:00:56]} 34. axb6 {[%emt 0:00:06]} Rd6 {[%emt 0:00:02]} 35. Rb2 {[%emt 0:00:12]} f5 {[%emt 0:00:14]} 36. g3 {[%emt 0:00:16]} Kf7 {[%emt 0:00:41]} 37. h4 {[%emt 0:01:52]} h6 {[%emt 0:00:13]} 38. Rb5 {[%emt 0:00:14]} Kf6 {[%emt 0:00:10]} 39. g4 {[%emt 0:00:48]} fxg4 {[%emt 0:01:40]} 40. Kh2 {[%emt 0:00:49]} Rd2 {[%emt 0:00:19]} 41. Kg3 {[%emt 0:00:10]} h5 {[%emt 0:00:11]} 42. Kg2 {[%emt 0:01:11]} Rd3 {[%emt 0:00:28]} 43. Kg3 {[%emt 0:01:47]} Rd2 {[%emt 0:00:23]} 44. Kg2 {[%emt 0:00:04]} Ke7 {[%emt 0:00:43]} 45. Kg3 {[%emt 0:00:37]} Kd6 {[%emt 0:00:26]} 46. Rg5 {[%emt 0:01:32]} Bf7 {[%emt 0:01:01]} 47. Rxg6+ {[%emt 0:00:07]} Bxg6 {[%emt 0:00:14]} 48. Nc4+ {[%emt 0:00:02]} Kc5 {[%emt 0:00:08]} 49. Nxd2 {[%emt 0:00:03]} Kxb6 {[%emt 0:00:23]} 50. Kf4 {[%emt 0:00:04]} Kc6 {[%emt 0:00:28]} 51. Kg5 {[%emt 0:01:54]} Be8 {[%emt 0:00:45]} 52. Kf6 {[%emt 0:02:54]} b5 {[%emt 0:00:43]} 53. Ke7 {[%emt 0:01:53]} e3 {[%emt 0:00:13]} 54. fxe3 {[%emt 0:00:57]} g3 {[%emt 0:00:42]} 55. Kxe8 {[%emt 0:02:22]} g2 {[%emt 0:00:27]} 56. Nf3 {[%emt 0:00:04]} Kd5 {[%emt 0:00:29]} 57. Kf7 {[%emt 0:00:56]} Ke4 {[%emt 0:00:54]} 58. Ng1 {[%emt 0:00:05]} b4 {[%emt 0:00:09]} 59. Kg6 {[%emt 0:00:04]} b3 {[%emt 0:00:03]} 60. Kxh5 {[%emt 0:00:22]} b2 {[%emt 0:00:39]} 61. Ne2 {[%emt 0:00:06]} Kxe3 {[%emt 0:00:08]} 0-1